[Event "Bangabandhu Premier Div League 2022"]
[Site "Dhaka"]
[Date "2022.12.07"]
[Round "8.8"]
[White "Zia, Tahsin Tajwar"]
[Black "Jabed Al Azad"]
[Result "1-0"]
[ECO "D02"]
[WhiteElo "2241"]
[BlackElo "2084"]
[Annotator "TA"]
[PlyCount "166"]
[EventDate "2022.12.01"]
[EventCountry "BAN"]
[SourceTitle "playchess.com"]
[Source "ChessBase"]
[SourceQuality "1"]
[TimeControl "40/5400+30:1800+30"]

{[%evp 9,166,-8,8,10,10,0,19,16,24,30,31,0,7,14,30,23,60,24,29,24,22,33,33,13,10,6,81,71,70,73,70,77,86,76,72,77,88,89,67,0,0,0,54,65,76,40,37,22,57,60,61,61,56,56,72,52,51,25,38,28,24,8,12,0,28,12,15,22,20,0,0,0,8,5,7,12,17,0,0,0,12,0,39,0,0,0,0,0,0,0,0,0,80,83,62,86,63,0,0,0,0,0,62,62,62,62,62,62,62,62,62,62,62,62,62,62,296,8,62,8,41,41,41,41,41,8,41,8,4385,3474,12850,6422,29952,29951,29956,29957,29953,29958,29954,29956,29950,29955,2351,1843,29960,29962,29973,29974,29977,29973,29975,29975,29976,29977,29977,29978,29974,29975,29951]} 1. d4 {[%emt 0:00:05]} d5 {[%emt 0:00:16]} 2. Nf3 {[%emt 0:01:37]} Nf6 {[%emt 0:00:03]} 3. c3 {[%emt 0:00:06]} c6 {[%emt 0:00:38]} 4. Qc2 {[%emt 0:01:37]} g6 {[%emt 0:00:04]} 5. Bf4 {[%emt 0:00:47]} Bf5 {[%emt 0:00:11]} (5... Nh5 $5 {[%cal Rh5f4]} 6. Be3 Bg7 $11) 6. Qb3 {[%emt 0:00:21] D02: 1 d4 d5 2 Nf3 sidelines, including 2...Nf6 3 g3 and 2...Nf6 3 Bf4.} Qb6 {[%emt 0:00:12]} 7. Nbd2 {[%emt 0:00:19]} Bg7 {[%emt 0:00:18]} 8. h3 {[%emt 0:00:15] The position is equal.} h5 {[%emt 0:00:15]} 9. e3 {[%emt 0:00:30]} Nbd7 {[%emt 1:33:03] [#]} 10. Ne5 $146 {[%emt 0:02:44]} ({Predecessor:} 10. Be2 Ne4 11. O-O O-O 12. Nxe4 Bxe4 13. Nd2 Bf5 14. g4 hxg4 15. hxg4 Be6 16. Bg3 {½-½ (42) Rottstaedt,W (2265)-Besel,W Germany 1994}) 10... Nxe5 {[%emt 0:00:00]} 11. Bxe5 {[%emt 0:00:10]} O-O {[%emt 0:00:00]} 12. Be2 {[%emt 0:00:26]} (12. Rg1 {simplifies} Qxb3 13. axb3 Bc2 14. Bf4) 12... Nd7 {[%emt 0:01:30]} 13. Bxg7 {[%emt 0:02:19]} Kxg7 {[%emt 0:00:30]} 14. g4 {[%emt 0:00:55]} hxg4 {[%emt 0:00:00]} 15. hxg4 {[%emt 0:00:09]} Be6 {[%emt 0:00:00]} 16. Qc2 {[%emt 0:01:45]} Rh8 {[%emt 0:00:00] Against f4} 17. O-O-O {[%emt 0:00:10] next f4 is good for White.} f6 {[%emt 0:02:00]} (17... Nf6 $11) 18. f4 {[%emt 0:12:05]} (18. Rhg1 {simplifies} Rh2 19. g5 f5 20. Nf3) 18... Bf7 {[%emt 0:00:00]} 19. Nf3 {[%emt 0:00:48]} Rxh1 {[%emt 0:00:00]} 20. Rxh1 {[%emt 0:00:06] Strongly threatening Bd3.} Rh8 {[%emt 0:01:30]} 21. Rxh8 {[%emt 0:03:57]} Kxh8 {[%emt 0:00:00]} 22. Bd3 {[%emt 0:00:18]} Kg7 {[%emt 0:00:00]} 23. Nh4 {[%emt 0:00:15][%cal Rd3g6]} Nf8 {[%emt 0:00:00][%cal Oe7e5]} 24. g5 {[%emt 0:01:10] Inhibits e5.} (24. Qg2 $14) 24... fxg5 $11 {[%emt 0:00:00]} 25. fxg5 {[%emt 0:01:42]} Qc7 {[%emt 0:00:00] Prevents Qh2.} ({Black should play} 25... e5 $11) 26. Qg2 $14 {[%emt 1:08:54]} Qd6 {[%emt 0:03:00]} 27. Qh3 {[%emt 0:00:30]} Qe6 {[%emt 0:00:00]} 28. Qf3 {[%emt 0:00:30]} Qd6 {[%emt 0:00:00]} (28... Be8 {feels hotter.} 29. Qf4 Bd7 30. Kd2 Qh3) 29. Qg2 {[%emt 0:00:00]} c5 {[%emt 0:00:00]} 30. Nf3 {[%emt 0:01:00] White is much more active.} cxd4 {[%emt 0:00:00]} 31. cxd4 {[%emt 0:00:00]} a6 {[%emt 0:00:00]} 32. Ne5 {[%emt 0:01:00]} Nd7 $1 {[%emt 0:03:00]} 33. Ng4 {[%emt 0:00:00]} Be6 {[%emt 0:00:00]} 34. Nf2 {[%emt 0:00:00]} Nf8 {[%emt 0:00:00]} 35. Nd1 {[%emt 0:00:00]} ({But not} 35. Qh1 Qg3 36. Nd1 (36. Qh6+ Kg8 $17) 36... Qxg5 $17) 35... Bf7 {[%emt 0:00:00]} 36. Nc3 {[%emt 0:00:00]} b5 {[%emt 0:00:00]} 37. Ne2 {[%emt 0:00:00]} e5 {[%emt 0:00:00]} 38. Qh2 {[%emt 0:00:00]} Nd7 {[%emt 0:00:00]} 39. Ng3 {[%emt 0:00:00] Threatens to win with Qh6+.} Kg8 {[%emt 0:03:30]} 40. Ne2 {[%emt 0:00:00]} Qe7 {[%emt 0:00:00]} 41. Qg3 {[%emt 0:02:58]} e4 {[%emt 0:00:00]} 42. Bc2 {[%emt 0:00:08]} Nf8 {[%emt 0:00:00]} 43. Nf4 {[%emt 0:00:41]} (43. Bb3 $5 {[%cal Re2c3]}) 43... Qd6 {[%emt 0:00:00]} 44. Bb3 {[%emt 0:02:48]} a5 {[%emt 0:00:00]} 45. a3 {[%emt 0:01:19]} (45. Ne2 {simplifies} Qxg3 46. Nxg3 Nh7 47. Ne2) 45... Nd7 {[%emt 0:33:00]} 46. Qh4 {[%emt 0:29:06]} Nb6 {[%emt 0:00:30]} 47. Qh6 {[%emt 0:00:00]} Qf8 {[%emt 0:00:30]} 48. Nxg6 {[%emt 0:00:00][%csl Gg6][%cal Rh6h8]} Qxh6 {[%emt 0:00:00]} 49. Ne7+ {[%emt 0:00:00]} Kh7 {[%emt 0:00:00]} (49... Kf8 $2 50. gxh6 b4 51. axb4 axb4 52. Kc2 $1 $18) 50. gxh6 {[%emt 0:00:00]} Kxh6 $11 {[%emt 0:00:00][%mdl 4096] Endgame KBN-KBN} (50... Be6 $1 $11 {remains equal.}) 51. Nf5+ $1 $16 {[%emt 0:02:30]} Kg6 {[%emt 0:00:00]} 52. Nd6 {[%emt 0:00:00]} b4 {[%emt 0:02:30]} 53. a4 {[%emt 0:00:00]} (53. axb4 $14 axb4 54. Nb5) 53... Be6 $11 {[%emt 0:00:00]} 54. Nb7 {[%emt 0:00:00]} Bd7 {[%emt 0:00:00]} 55. Nxa5 {[%emt 0:00:00]} Kf6 {[%emt 0:00:00]} ({Better is} 55... Kg5 $11) 56. Nb7 $14 {[%emt 0:00:00]} Bxa4 {[%emt 0:00:00]} 57. Bxa4 {[%emt 0:00:00]} Nxa4 {[%emt 0:00:00] KN-KN} 58. Nc5 {[%emt 0:00:00]} Nb6 {[%emt 0:00:00]} 59. b3 {[%emt 0:00:00] Inhibits Nc4.} Ke7 {[%emt 0:00:00]} 60. Na6 {[%emt 0:00:00]} Kd6 {[%emt 0:00:00]} 61. Nxb4 {[%emt 0:00:00] aiming for Kb2.} Nc8 {[%emt 0:00:00]} 62. Kd2 {[%emt 0:00:00]} Na7 $2 {[%emt 0:00:00]} (62... Ne7 $14) 63. Nc2 $2 {[%emt 0:00:00]} (63. Kc3 $1 $18 {And now Kb2 would win.} Nb5+ 64. Kb2) 63... Nb5 {[%emt 0:05:30]} (63... Kc7 $11) 64. Ne1 {[%emt 0:00:00]} ({White should try} 64. Ke1 $1 $14) 64... Kc6 {[%emt 0:00:00]} 65. Ng2 {[%emt 0:07:00]} Kb6 {[%emt 0:00:00]} 66. Nf4 {[%emt 0:00:00]} Kc6 {[%emt 0:00:00]} 67. Kc2 {[%emt 0:00:00]} Nc7 {[%emt 0:02:00]} 68. b4 {[%emt 0:01:30] Black must now prevent Kb3.} Kb5 $2 {[%emt 0:00:00][%mdl 8192] [#] White stays focused until the end.} (68... Nb5 $11) 69. Kb3 $1 $18 {[%emt 0:00:00]} Ka6 {[%emt 0:01:00]} 70. Ka4 {[%emt 0:00:00]} Kb6 {[%emt 0:00:30] Against b5} 71. b5 {[%emt 0:00:00]} Nxb5 {[%emt 0:00:00]} 72. Nxd5+ {[%emt 0:00:00]} Kc6 {[%emt 0:00:00]} 73. Ne7+ {[%emt 0:00:00]} Kb6 {[%emt 0:00:00]} 74. Kb4 {[%emt 0:03:00]} Nd6 {[%emt 0:02:00] [#]} 75. d5 $1 {[%emt 0:00:00][%cal Bd4d5,Bd5d6,Bd6d7][%mdl 32]} Kc7 {[%emt 0:00:00]} 76. Kc5 {[%emt 0:00:00] Nc6 is the strong threat.} Kd7 {[%emt 0:00:00]} 77. Nc6 {[%emt 0:00:00] White mates.} Nf5 {[%emt 0:00:00]} 78. Ne5+ {[%emt 0:02:00]} Ke7 {[%emt 0:00:00]} 79. Nc4 {[%emt 0:00:00]} Kf6 {[%emt 0:00:00]} 80. d6 {[%emt 0:00:00]} Ke6 {[%emt 0:00:00]} 81. Kc6 {[%emt 0:00:00]} Nh6 {[%emt 0:00:00]} 82. d7 {[%emt 0:02:00]} Nf7 {[%emt 0:00:00]} 83. Kc7 {[%emt 0:00:00]} Kd5 {[%emt 0:04:30] Weighted Error Value: White=0.10 (very precise) /Black=0.13 (very precise)} 1-0

[Event "Bangabandhu Premier Div League 2022"]
[Site "Dhaka"]
[Date "2022.12.07"]
[Round "8.8"]
[White "Abdul, Momin"]
[Black "Subrota, Biswas"]
[Result "1/2-1/2"]
[ECO "B12"]
[WhiteElo "1900"]
[BlackElo "2288"]
[Annotator "TA"]
[PlyCount "118"]
[EventDate "2022.11.30"]
[EventType "team-tourn"]
[EventCountry "BAN"]
[SourceTitle "playchess.com"]
[Source "ChessBase"]
[SourceQuality "1"]
[TimeControl "40/5400+30:1800+30"]

{[%evp 11,118,-10,-16,-6,3,-58,-52,-53,-42,-95,-102,-83,-69,-75,-53,-77,-75,-162,-164,-160,-144,-150,-163,-158,-144,-181,-179,-182,-175,-156,-134,-128,-127,-133,-142,-157,-162,-146,-145,-137,-140,-137,-143,-235,-216,-220,-137,-142,-139,-212,-194,-212,-187,-191,-185,-155,-137,-148,-23,-23,-23,-23,-23,-23,-18,-18,-18,-18,-18,-18,-18,-18,-18,-18,-18,-18,0,0,0,0,0,0,0,0,0,0,0,0,0,0,0,0,0,0,0,0,0,0,0,0,0,0,0,0,0,0,0,0,0]} 1. e4 {[%emt 0:06:43]} c6 {[%emt 0:00:02][%cal Bc7c6,Bc6c5,Bc5c4][%mdl 32]} 2. d4 {[%emt 0:00:21]} d5 {[%emt 0:00:03]} 3. e5 {[%emt 0:03:31]} Bf5 {[%emt 0:00:09]} 4. f4 {[%emt 0:07:29]} e6 {[%emt 0:00:52]} 5. Nf3 {[%emt 0:00:59]} c5 {[%emt 0:00:37]} 6. c3 {[%emt 0:00:04]} Nc6 {[%emt 0:00:20]} 7. Be3 {[%emt 0:01:08] B12: Caro-Kann: Advance Variation.} Qb6 {[%emt 0:01:04]} 8. Qb3 {[%emt 0:04:35]} ({White should play} 8. Qd2 $11) 8... c4 $15 {[%emt 0:00:11]} 9. Qxb6 {[%emt 0:00:23] Black is slightly better.} axb6 {[%emt 0:00:01]} 10. Nbd2 {[%emt 0:01:30] [#]} (10. Be2 $15) 10... b5 $1 $17 {[%emt 0:00:09]} 11. Nh4 {[%emt 0:00:51]} Nge7 {[%emt 0:00:22] [#]} 12. Be2 $146 {[%emt 0:00:45]} ({Predecessor:} 12. Kf2 b4 13. Be2 h5 14. h3 bxc3 15. bxc3 Bc2 16. Rhc1 Ba4 17. Ndf3 g6 18. g4 hxg4 19. hxg4 {1-0 (39) Ionescu,D (2255)-Nanu,C (2340) Gyula 2000}) 12... b4 {[%emt 0:01:36]} 13. g4 {[%emt 0:00:53]} Bc2 {[%emt 0:01:13] ...Ng6 is the strong threat.} 14. cxb4 {[%emt 0:13:42]} (14. Kf2 $17 {was necessary.}) 14... Nxb4 {[%emt 0:00:24]} 15. a3 {[%emt 0:01:14]} Nec6 {[%emt 0:01:26]} 16. Kf2 {[%emt 0:02:43]} Nd3+ {[%emt 0:00:04]} 17. Bxd3 {[%emt 0:00:04]} Bxd3 {[%emt 0:00:12]} 18. Rhc1 {[%emt 0:05:54]} b5 {[%emt 0:01:21]} 19. f5 {[%emt 0:03:28]} Be7 {[%emt 0:00:10]} 20. Ng2 {[%emt 0:02:50]} exf5 {[%emt 0:08:36]} 21. Nf4 {[%emt 0:00:44]} Bh4+ {[%emt 0:00:02]} (21... fxg4 22. Nxd3 (22. Nxd5 $2 O-O $19) 22... f6 23. Kg2 $14) 22. Kg2 {[%emt 0:07:36] aiming for Nxd3.} Bg5 {[%emt 0:00:03] And now ...Bxf4 would win. A strong pair of Bishops.} (22... fxg4 23. Nxd3 (23. Nxd5 $2 O-O $19) 23... f6 24. Nb4 Nxb4 25. axb4 $16) 23. Nxd5 {[%emt 0:01:40]} Bxe3 {[%emt 0:00:02]} 24. Nxe3 {[%emt 0:01:25]} Nxd4 {[%emt 0:00:02]} 25. gxf5 {[%emt 0:01:17]} O-O {[%emt 1:23:59]} (25... Bxf5 26. a4 $15) 26. a4 {[%emt 0:06:13]} bxa4 {[%emt 0:00:00]} 27. f6 {[%emt 0:00:29]} (27. Rc3 $17) 27... Nb3 {[%emt 0:00:00]} 28. Nxb3 {[%emt 0:00:06]} axb3 {[%emt 0:00:00]} 29. Rxa8 {[%emt 0:00:45]} Rxa8 $19 {[%emt 0:00:00][%mdl 4096] Endgame KRB-KRN} 30. Rc3 {[%emt 0:01:00]} (30. Kf3 $17) 30... Ra4 {[%emt 0:00:00]} 31. Kg3 {[%emt 0:01:30]} h6 {[%emt 0:00:00]} 32. h4 {[%emt 0:00:29]} gxf6 {[%emt 0:00:00]} 33. exf6 {[%emt 0:00:05]} Kh7 {[%emt 0:00:00]} 34. h5 {[%emt 0:03:03] [#]} Kg8 {[%emt 0:00:00]} (34... Be2 $1 $17 {White must now prevent ...Ra8.} 35. Kf2 Bxh5 36. Nxc4 Kg6 37. Ne5+ Kxf6 38. Rxb3 Rf4+ 39. Kg3 Kg5) 35. Ng4 $1 $11 {[%emt 0:01:59]} Ra2 {[%emt 0:00:00]} 36. Ne5 {[%emt 0:03:02]} Rxb2 {[%emt 0:00:00] Strongly threatening ...Rc2.} 37. Nxd3 {[%emt 0:00:18]} cxd3 {[%emt 0:00:00]} 38. Rxd3 {[%emt 0:00:03] KR-KR. The position is equal.} Rb1 {[%emt 0:00:00]} 39. Kg2 {[%emt 0:01:22]} Re1 {[%emt 0:00:00] ( -> ...b2)} (39... b2 {is more complex.} 40. Rb3 Kh7 41. Rb6 Re1) 40. Rxb3 {[%emt 0:06:29]} Re5 {[%emt 0:00:00]} 41. Rg3+ {[%emt 0:31:24]} Kf8 {[%emt 0:00:00]} 42. Ra3 {[%emt 0:05:11]} Rg5+ {[%emt 0:00:00]} 43. Kf3 {[%emt 0:00:07][%cal Ra3a8]} Kg8 {[%emt 0:00:00]} 44. Kf4 {[%emt 0:00:37]} Rxh5 {[%emt 0:00:00]} 45. Rg3+ {[%emt 0:00:08]} Kf8 {[%emt 0:00:00]} 46. Ra3 $1 {[%emt 0:00:08][%cal Ra3a8]} Ke8 {[%emt 0:00:00]} 47. Re3+ {[%emt 0:00:16]} Kf8 {[%emt 0:00:00]} 48. Ra3 {[%emt 0:00:10][%cal Ra3a8]} Rh4+ {[%emt 0:00:00]} 49. Kf5 {[%emt 0:00:31][%cal Ra3a8]} Rh5+ {[%emt 0:00:00]} 50. Kf4 {[%emt 0:00:26][%cal Ra3a8]} Kg8 {[%emt 0:00:00]} 51. Rg3+ {[%emt 0:00:05]} Rg5 {[%emt 0:00:00]} 52. Rxg5+ {[%emt 0:00:14]} hxg5+ {[%emt 0:00:00]} 53. Kxg5 {[%emt 0:00:01] KP-KP} Kh8 {[%emt 0:00:00]} 54. Kh5 {[%emt 0:00:46]} Kg8 {[%emt 0:00:00]} 55. Kh6 {[%emt 0:00:06]} Kh8 $1 {[%emt 0:00:00]} (55... Kf8 {gets mated.} 56. Kh7 Ke8 57. Kg8 Kd7 58. Kxf7 Kd8 59. Kg7 Kd7 60. f7) 56. Kh5 {[%emt 0:01:17]} Kg8 {[%emt 0:00:00]} 57. Kh6 {[%emt 0:00:24]} Kh8 $1 {[%emt 0:00:00]} (57... Kf8 {leads to mate.} 58. Kh7 Ke8 59. Kg8 Kd8 60. Kxf7 Kd7 61. Kg7 Kc6 62. f7) 58. Kh5 {[%emt 0:00:12]} Kg8 {[%emt 0:00:00]} 59. Kh6 {[%emt 0:01:12]} Kh8 $1 {[%emt 0:00:00] Black had all chances to win.   Weighted Error Value: White=0.09 (flawless) /Black=0.08 (flawless)} (59... Kf8 {is a self mate.} 60. Kh7 Ke8 61. Kg8 Kd7 62. Kxf7 Kd8 63. Kg7 Kd7 64. f7) 1/2-1/2

[Event "Bangabandhu Premier Div League 2022"]
[Site "Dhaka"]
[Date "2022.12.07"]
[Round "8.9"]
[White "Rahman, Ziaur"]
[Black "Mendonca, Leon Luke"]
[Result "1/2-1/2"]
[ECO "A07"]
[WhiteElo "2464"]
[BlackElo "2565"]
[Annotator "TA"]
[PlyCount "72"]
[EventDate "2022.11.30"]
[EventType "team-tourn"]
[EventCountry "BAN"]
[SourceTitle "playchess.com"]
[Source "ChessBase"]
[SourceQuality "1"]
[TimeControl "40/5400+30:1800+30"]

{[%evp 11,72,10,16,4,5,8,7,-22,-27,-25,-22,-24,-13,-18,-11,-29,0,-3,-11,-27,-35,-37,-30,-28,-27,-27,0,-12,0,0,0,-2,-1,-2,0,0,0,0,0,0,0,0,0,0,0,0,0,0,0,0,0,0,0,0,0,0,0,0,0,0,0,0,0]} 1. Nf3 {[%emt 0:00:11]} d5 {[%emt 0:01:29]} 2. g3 {[%emt 0:01:09]} c6 {[%emt 0:00:44]} 3. Bg2 {[%emt 0:00:08]} Bg4 {[%emt 0:00:12]} 4. h3 {[%emt 0:01:48]} Bh5 {[%emt 0:00:23]} 5. O-O {[%emt 0:01:50]} Nd7 {[%emt 0:00:08]} 6. d3 {[%emt 0:02:03]} Ngf6 {[%emt 0:01:26]} 7. Nc3 {[%emt 0:06:54] 7.c4 is a critical line. A07: Réti Opening: New York and Capablanca Systems.} e5 {[%emt 0:02:54]} 8. e4 {[%emt 0:02:13]} dxe4 {[%emt 0:02:44]} 9. Nxe4 {[%emt 0:01:53]} Nxe4 {[%emt 0:11:09]} 10. dxe4 {[%emt 0:00:08]} Be7 {[%emt 0:03:46]} 11. Be3 {[%emt 0:04:28]} O-O {[%emt 0:01:55] [#]} 12. a4 $146 {[%emt 0:11:52]} ({Predecessor:} 12. c3 Qc7 13. Qc2 Bc5 14. Qe2 Bxe3 15. Qxe3 f6 16. Rfd1 Rfd8 17. Bf1 Bf7 18. Nd2 {½-½ (59) Koehler,J (2099)-Susla,V (2276) LSS email 2015}) 12... Qc7 {[%emt 0:03:31]} 13. Qc1 {[%emt 0:02:02]} Rfd8 {[%emt 0:02:06]} 14. a5 {[%emt 0:02:13]} Nc5 {[%emt 0:30:40]} 15. Bxc5 {[%emt 0:09:48]} Bxc5 {[%emt 0:00:34]} 16. Qg5 {[%emt 0:00:08][%csl LRe5,LRh5]} Bxf3 {[%emt 0:01:43]} 17. Bxf3 {[%emt 0:00:06]} h6 {[%emt 0:02:44]} 18. Qc1 {[%emt 0:00:16]} a6 {[%emt 0:15:38]} 19. Qe1 {[%emt 0:07:05] Against Bb4. The position is equal.} Qe7 {[%emt 0:05:47]} 20. Kg2 {[%emt 0:02:27]} Rd6 {[%emt 0:01:17]} 21. Qc3 {[%emt 0:02:41]} Rd4 {[%emt 0:01:41]} 22. Rfd1 {[%emt 0:02:42]} Rad8 {[%emt 0:00:08]} 23. Rxd4 {[%emt 0:04:54]} Rxd4 {[%emt 0:00:08]} 24. Qe1 {[%emt 0:00:37]} g6 {[%emt 0:07:10]} 25. c3 {[%emt 0:01:10]} Rd6 {[%emt 0:00:23]} 26. Rd1 {[%emt 0:01:25]} h5 {[%emt 0:00:19]} 27. Rxd6 {[%emt 0:00:41]} Bxd6 $11 {[%emt 0:00:48][%mdl 4096] Endgame KQB-KQB} 28. Qd2 {[%emt 0:01:24]} Bc7 {[%emt 0:00:44]} 29. b4 {[%emt 0:00:12]} c5 {[%emt 0:00:26]} 30. Be2 {[%emt 0:00:57]} cxb4 {[%emt 0:00:09]} 31. cxb4 {[%emt 0:00:05]} Bd6 {[%emt 0:00:17]} 32. b5 {[%emt 0:00:21]} axb5 {[%emt 0:00:59]} 33. Bxb5 {[%emt 0:00:09]} Bb4 {[%emt 0:00:27]} 34. Qa2 {[%emt 0:00:48]} Qc7 {[%emt 0:00:47]} 35. a6 {[%emt 0:00:21]} bxa6 {[%emt 0:00:04]} 36. Bxa6 {[%emt 0:00:51]} Kg7 {[%emt 0:00:03] Weighted Error Value: White=0.04 (flawless) /Black=0.03 (flawless)} 1/2-1/2